Cogmind - Beta 9.6 @@@ ROGUE MODE // 2020.05.29 @ 01:08:04 // Winter2019/RPGLIKE Player: Vexic Result: Smashed by cave-in Performance ------------- Evolutions (2) 1000 Regions Visited (5) 1000 Robots Destroyed (23) 115 Value Destroyed (474) 474 Prototype IDs (22) 440 Alien Tech Used (0) 0 Bonus (300) 300 TOTAL SCORE: 3329 Bonus ------- Aligned with FarCom 300 Cogmind --------- Core Integrity 0/750 Matter 114/300 Energy 116/125 System Corruption 0% Temperature Cool (0) Movement Flying (50) Location -8/Materials Parts ------- > --- POWER (1) -------- Light Ion Engine > --- PROPULSION (4) --- Flying Fortress v7 > --- UTILITY (3) ------ Cooling System 0b10 Alert Chip Armor Integrity Analyzer > --- WEAPON (1) ------- Bore Cannon > --- INVENTORY (0) ---- (None) Peak State ------------ > --- POWER ------------ Ion Engine > --- PROPULSION ------- Flying Fortress v7 > --- UTILITY ---------- Cooling System 0b10 Alert Chip Armor Integrity Analyzer > --- WEAPON ----------- Bore Cannon > --- INVENTORY -------- (None) [Rating: 48] Favorites ----------- Power Ion Engine Engine Ion Engine Propulsion Wheel Wheel Wheel Flight Unit Flying Fortress v7 Utility 0b10 Alert Chip Device Cooling System Processor 0b10 Alert Chip Weapon Small Laser Energy Gun Small Laser Ballistic Cannon Bore Cannon Build | -11 -10 -10 -10 -9 -8 ------- Run | Scr Mat Min Exi Min Mat Slots Evolved 5 | 3 . . . 2 . Power . | . . . . . . Propulsion 3 | 3 . . . . . Utility 2 | . . . . 2 . Weapon . | . . . . . . Parts Attached 20 | 7 6 . 3 4 . Power 2 | 1 . . . 1 . Engine 2 | 1 . . . 1 . Core . | . . . . . . Reactor . | . . . . . . Propulsion 11 | 4 6 . 1 . . Treads . | . . . . . . Leg . | . . . . . . Wheel 8 | 4 4 . . . . Hover . | . . . . . . Flight 3 | . 2 . 1 . . Utility 4 | 1 . . 1 2 . Device 2 | 1 . . . 1 . Storage . | . . . . . . Processor 2 | . . . 1 1 . Hackware . | . . . . . . Protection . | . . . . . . Artifact . | . . . . . . Weapon 3 | 1 . . 1 1 . Energy Gun 2 | 1 . . 1 . . Energy Cannon . | . . . . . . Ballistic Gun . | . . . . . . Ballistic Cannon 1 | . . . . 1 . Launcher . | . . . . . . Special Weapon . | . . . . . . Impact Weapon . | . . . . . . Slashing Weapon . | . . . . . . Piercing Weapon . | . . . . . . Special Melee Weapon . | . . . . . . Unidentified Prototypes 1 | . . . 1 . . Parts Lost . | . . . . . . Power . | . . . . . . Propulsion . | . . . . . . Utility . | . . . . . . Weapon . | . . . . . . Highest Loss Streak . | . . . . . . Average Slot Usage (%) 74 | . 99 100 80 60 66 Engine 12 | . 14 14 14 11 11 Wheel 14 | . 44 42 22 . . Flight 12 | . 11 14 14 11 11 Device 10 | . 14 14 7 8 11 Processor 12 | . . . 6 19 22 Energy Gun 6 | . 14 14 13 1 . Ballistic Cannon 5 | . . . . 9 11 Naked Turns . | . . . . . . Heaviest Build 16 | 7 7 7 7 16 14 Greatest Support 72 | 40 40 30 72 72 72 Greatest Overweight (x) 1 | 1 1 . 1 . . Average Overweight (x) . | . . . . . . Largest Inventory Capacity . | . . . . . . Average Capacity . | . . . . . . Most Carried . | . . . . . . Average Carried . | . . . . . . Final Capacity . | . . . . . . Final Carried . | . . . . . . Class Distribution -------------------- 51% | Scout 40% | Mutant 8% | Scavenger-Mutant Dominant Class ---------------- Mutant | -10/Materials Mutant | -10/Mines Mutant | -10/Exiles Scout | -9/Mines Scout | -8/Materials Resources | -11 -10 -10 -10 -9 -8 ----------- Run | Scr Mat Min Exi Min Mat Matter Collected 676 | 254 76 . . 238 108 Remotely . | . . . . . . Salvage Created 507 | 147 56 . . 101 203 Parts 31 | 15 3 . . 1 12 Haulers Intercepted . | . . . . . . Recyclers Shooed 1 | 1 . . . . . Parts Field Recycled . | . . . . . . Retrieved Matter . | . . . . . . Parts Self-Destructed . | . . . . . . Prevented . | . . . . . . Kills | -11 -10 -10 -10 -9 -8 ------- Run | Scr Mat Min Exi Min Mat Combat Hostiles Destroyed 14 | . 2 . . 8 4 Guns 3 | . 2 . . 1 . Cannons 11 | . . . . 7 4 Classes Destroyed 6 | 2 2 . . 1 1 Tunneler 5 | 5 . . . . . Recycler 1 | 1 . . . . . Operator 3 | . 1 . . . 2 Grunt 7 | . 2 . . 2 3 Hunter 1 | . . . . . 1 Assembled 6 | . . . . 6 . Best Kill Streak 4 | 3 2 . . 4 2 Combat Bots Only 4 | . 2 . . 4 1 Max Kills in Single Turn 1 | 1 1 . . 1 1 Gunslinging . | . . . . . . Exploded . | . . . . . . Melee . | . . . . . . Uniques/NPCs Destroyed . | . . . . . . Combat | -11 -10 -10 -10 -9 -8 -------- Run | Scr Mat Min Exi Min Mat Damage Taken 1151 | . 112 . . 347 692 Core 963 | . 93 . . 282 588 Absorbed by Shields . | . . . . . . Redirected to Core 686 | . 59 . . 240 387 Core Remaining (%) 84 | 100 . . . 68 . Volleys Fired 123 | 24 26 . . 31 42 Largest 1 | 1 1 . . 1 1 Hottest 57 | 40 40 . . 57 57 Shots Fired 123 | 24 26 . . 31 42 Gun 57 | 24 26 . . 7 . Cannon 66 | . . . . 24 42 Launcher . | . . . . . . Special . | . . . . . . Kinetic 66 | . . . . 24 42 Thermal 57 | 24 26 . . 7 . Explosive . | . . . . . . Electromagnetic . | . . . . . . Robot Hit Streak 9 | 4 9 . . 6 5 Robot Miss Streak 6 | 4 4 . . 2 6 Penetration Max . | . . . . . . Secondary Targets . | . . . . . . Shots Hit Robots 67 | 13 19 . . 16 19 Core Hits 32 | 7 7 . . 9 9 Critical Hits 17 | . . . . 9 8 Critical Kills 9 | . . . . 5 4 Critical Parts Destroyed 8 | . . . . 4 4 Melee Attacks . | . . . . . . Impact . | . . . . . . Slashing . | . . . . . . Piercing . | . . . . . . Sneak Attacks . | . . . . . . Combat Hostiles . | . . . . . . Follow-up Attacks . | . . . . . . Damage Inflicted 1223 | 162 200 . . 337 524 Guns 420 | 162 200 . . 58 . Cannons 636 | . . . . 279 357 Explosions 167 | . . . . . 167 Melee . | . . . . . . Ramming . | . . . . . . Kinetic 636 | . . . . 279 357 Thermal 587 | 162 200 . . 58 167 Explosive . | . . . . . . Electromagnetic . | . . . . . . Impact . | . . . . . . Slashing . | . . . . . . Piercing . | . . . . . . Highest Corruption . | . . . . . . Average Corruption . | . . . . . . Corruption Purged . | . . . . . . Overload Shots . | . . . . . . Overflow Damage 42 | . . . . 1 41 Projectiles 15 | . . . . 1 14 Explosions 27 | . . . . . 27 Melee . | . . . . . . Knockbacks 7 | . . . . 3 4 Impact . | . . . . . . Kinetic 7 | . . . . 3 4 Secondary . | . . . . . . Self-Inflicted Damage . | . . . . . . Shots . | . . . . . . Rammed . | . . . . . . Targets Rammed . | . . . . . . Kicked . | . . . . . . Crushed . | . . . . . . Highest Temperature 55 | . 48 . . 55 15 Average Temperature 19 | . 20 . . 19 8 Received Heat Transfer 158 | . 60 . . 44 54 Siege Activations . | . . . . . . Robots Corrupted . | . . . . . . Combat Hostiles . | . . . . . . Parts Fried . | . . . . . . Impact Corruptions . | . . . . . . Robots Melted . | . . . . . . Combat Hostiles . | . . . . . . Parts Melted 4 | 2 2 . . . . Heat Transferred 1050 | 375 450 . . 125 100 Parts Sabotaged . | . . . . . . Parts Stolen . | . . . . . . Parts Stripped . | . . . . . . Power Chain Reactions . | . . . . . . Missiles Intercepted . | . . . . . . Alert | -11 -10 -10 -10 -9 -8 ------- Run | Scr Mat Min Exi Min Mat Peak Influence 135 | 30 89 34 . 50 135 Average Influence 44 | 12 48 34 . 42 57 Maximum Alert Level . | . . . . . . Low Security (%) 100 | 100 100 100 . 100 100 Level 1 . | . . . . . . Level 2 . | . . . . . . Level 3 . | . . . . . . Level 4 . | . . . . . . Level 5 . | . . . . . . High Security . | . . . . . . Max Security . | . . . . . . Squads Dispatched 3 | . 2 . . . 1 Investigation 1 | . 1 . . . . Extermination . | . . . . . . Reinforcement 2 | . 1 . . . 1 Assault . | . . . . . . Garrison . | . . . . . . Intercept . | . . . . . . Construction Impeded . | . . . . . . Haulers Reinforced . | . . . . . . Stealth | -11 -10 -10 -10 -9 -8 --------- Run | Scr Mat Min Exi Min Mat Distress Signals . | . . . . . . Communications Jammed . | . . . . . . Distress Signals . | . . . . . . Times Spotted 26 | . 7 . . 8 11 Peak Tracking Total 4 | . 4 . . 2 3 Tactical Retreats 5 | . . . . 2 3 Traps | -11 -10 -10 -10 -9 -8 ------- Run | Scr Mat Min Exi Min Mat Traps Triggered 1 | . 1 . . . . Indirectly . | . . . . . . Trap Hack Attempts . | . . . . . . Triggered . | . . . . . . Disarmed . | . . . . . . Reprogrammed . | . . . . . . Reused . | . . . . . . Traps Extracted . | . . . . . . Installed . | . . . . . . Triggered . | . . . . . . Machines | -11 -10 -10 -10 -9 -8 ---------- Run | Scr Mat Min Exi Min Mat Machines Disabled 4 | . . . . . 4 Max in Single Turn 1 | . . . . . 1 Machines Sabotaged . | . . . . . . Garrisons Compromised . | . . . . . . Overloaded Fab Kills . | . . . . . . Fab Network Shutdowns . | . . . . . . Hacking | -11 -10 -10 -10 -9 -8 --------- Run | Scr Mat Min Exi Min Mat Machines Accessed 5 | . . . 5 . . Terminals . | . . . . . . Fabricators . | . . . . . . Repair Stations . | . . . . . . Recycling Units . | . . . . . . Scanalyzers . | . . . . . . Garrison Access . | . . . . . . Total Hacks 38 | . . . 38 . . Successful 38 | . . . 38 . . Failed . | . . . . . . Catastrophic . | . . . . . . Database Lockouts . | . . . . . . Manual 1 | . . . 1 . . Terminals . | . . . . . . Fabricators . | . . . . . . Repair Stations . | . . . . . . Recycling Units . | . . . . . . Scanalyzers . | . . . . . . Garrison Access . | . . . . . . Terminal Hacks 38 | . . . 38 . . Record 37 | . . . 37 . . EX-Prototype ID Bank 1 | . . . 1 . . Fabricator Hacks . | . . . . . . Repair Station Hacks . | . . . . . . Recycling Unit Hacks . | . . . . . . Scanalyzer . | . . . . . . Garrison Access Hacks . | . . . . . . Unauthorized Hacks . | . . . . . . Terminals . | . . . . . . Fabricators . | . . . . . . Repair Stations . | . . . . . . Recycling Units . | . . . . . . Scanalyzers . | . . . . . . Garrison Access . | . . . . . . Data Cores Recovered . | . . . . . . Used . | . . . . . . Hacking Detections . | . . . . . . Full Trace Events . | . . . . . . Feedback Events . | . . . . . . Feedback Blocked . | . . . . . . Robot Schematics Acquired . | . . . . . . Robots Built . | . . . . . . Matter . | . . . . . . Time . | . . . . . . Total Robot Build Rating . | . . . . . . Part Schematics Acquired . | . . . . . . Parts Built . | . . . . . . Matter . | . . . . . . Time . | . . . . . . Total Part Build Rating . | . . . . . . Parts Repaired . | . . . . . . Time . | . . . . . . Parts Recycled . | . . . . . . Recycled Matter . | . . . . . . Retrieved Matter . | . . . . . . Retrieved Components . | . . . . . . Parts Scanalyzed . | . . . . . . Part Schematics Acquired . | . . . . . . Parts Damaged . | . . . . . . Bothacking | -11 -10 -10 -10 -9 -8 ------------ Run | Scr Mat Min Exi Min Mat Used RIF Installer . | . . . . . . Robots Hacked . | . . . . . . Non-combat . | . . . . . . Combat . | . . . . . . Robot Hacks Applied . | . . . . . . Relay Couplers Released . | . . . . . . Robots Rewired . | . . . . . . Allies Hacked . | . . . . . . Hacks Repelled . | . . . . . . Allies | -11 -10 -10 -10 -9 -8 -------- Run | Scr Mat Min Exi Min Mat Total Allies . | . . . . . . Largest Group . | . . . . . . Highest-Rated Group . | . . . . . . Highest-Rated Ally . | . . . . . . Total Orders . | . . . . . . Ally Attacks . | . . . . . . Total Damage . | . . . . . . Kills . | . . . . . . Allies Corrupted . | . . . . . . Allies Melted . | . . . . . . Intel | -11 -10 -10 -10 -9 -8 ------- Run | Scr Mat Min Exi Min Mat Robot Analysis Total . | . . . . . . Derelict Logs Recovered . | . . . . . . Drone Launches . | . . . . . . Drone Recoveries . | . . . . . . Exploration | -11 -10 -10 -10 -9 -8 ------------- Run | Scr Mat Min Exi Min Mat Turns Passed 1847 | 147 185 142 441 405 527 Spaces Moved 1473 | 98 113 122 561 403 176 Core 4 | 4 . . . . . Treads . | . . . . . . Legs . | . . . . . . Wheels 621 | 94 109 122 296 . . Hover . | . . . . . . Flight 848 | . 4 . 265 403 176 Fastest Speed 50 | 50 80 80 50 50 50 Average Speed 63 | 79 81 80 66 50 50 Slowest Speed 135 | 100 135 80 120 50 50 Overloaded Moves . | . . . . . . Propulsion Burnouts . | . . . . . . Robots Hopped . | . . . . . . Cave-ins Triggered 3 | . . . . 1 2 Exploration Rate (%) 35 | 4 26 36 74 63 10 Regions Visited 5 Branch Regions 3 Pre-discovered Areas 1 | . . . 1 . . Known Exits Taken . | . . . . . . Unknown Exits Taken 5 | 1 1 1 1 1 . Scrap Searched 3 | . . 1 . 2 . Spaces Dug 2 | . . . . . 2 Terrain Destroyed 63 | . . . . 17 46 Melee . | . . . . . . Projectile 45 | . . . . 17 28 AOE 18 | . . . . . 18 Actions | -11 -10 -10 -10 -9 -8 --------- Run | Scr Mat Min Exi Min Mat Total 2264 | 139 179 166 632 574 574 Wait 630 | 11 29 45 63 127 355 Move 1468 | 97 112 121 560 402 176 Hop . | . . . . . . Pick Up . | . . . . . . Fast Attach 19 | 7 6 . 3 3 . Attach . | . . . . . . Detach . | . . . . . . Swap 1 | . . . . 1 . Drop 14 | . 6 . 6 2 . Fire 123 | 24 26 . . 31 42 Melee . | . . . . . . Ram . | . . . . . . Kick . | . . . . . . Crush . | . . . . . . Escape Stasis . | . . . . . . Rewire . | . . . . . . Trap . | . . . . . . Miscellaneous 9 | . . . . 8 1 Route ------- -11/Scrapyard -10/Materials -10/Mines -10/Exiles (discovered 2 exits: [*Min x2]) -9/Mines -8/Materials History --------- Turn | Location | Event 1 | -11/Scrapyard | Upgraded with Propulsion slot (x3) 11 | -11/Scrapyard | Discovered new exit (range 16) 148 | -11/Scrapyard | Entered Materials 272 | -10/Materials | Met 8R-AWN 326 | -10/Materials | Discovered new exit (range 6) 333 | -10/Materials | Entered Mines 334 | -10/Mines | Followed 8R-AWN into the Mines 471 | -10/Mines | Discovered new exit (range 5) 475 | -10/Mines | Entered Exiles 478 | -10/Exiles | Build established: Mutant 491 | -10/Exiles | Discovered new exit (range 16) 500 | -10/Exiles | Welcomed by 8R-AWN 514 | -10/Exiles | Met EX-HEX 563 | -10/Exiles | Met EX-DEC 582 | -10/Exiles | Learned location of Zion (-7) 606 | -10/Exiles | Discovered new exit (range 16) 674 | -10/Exiles | Met EX-BIN 685 | -10/Exiles | Aligned with FarCom system 686 | -10/Exiles | Given EX-Vault access code 715 | -10/Exiles | Opened EX-Vault 721 | -10/Exiles | Found Prototype Flight Unit 721 | -10/Exiles | Identified Flying Fortress v7 726 | -10/Exiles | Found 0b10 Alert Chip 752 | -10/Exiles | Warned to stay clear of 0b10 Research branches 827 | -10/Exiles | Learned about 8R-AWN's background 916 | -10/Exiles | Stole two prototypes: Flying Fortress v7, 0b10 Alert Chip 916 | -10/Exiles | Entered Mines 917 | -9/Mines | Assembled infested the area 918 | -9/Mines | Reached level 2 918 | -9/Mines | Upgraded with Utility slot (x2) 922 | -9/Mines | Assisted by a Guerilla fighting off Assembled 1217 | -9/Mines | Build established: Scout 1219 | -9/Mines | Crushed by falling debris 1268 | -9/Mines | Discovered new exit (range 13) 1321 | -9/Mines | Entered Materials 1323 | -8/Materials | Reached level 3 1781 | -8/Materials | Crushed by falling debris 1781 | -8/Materials | Core integrity fell below 50% 1849 | -8/Materials | Crushed by falling debris 1849 | -8/Materials | Smashed by cave-in Last Messages --------------- 01822_ HV Slug penetrates Wall. 01822_ HV Slug penetrates Fusion Modulator. 01833_ HV Slug penetrates Wall. 01840_ HV Slug penetrates G-47 Trooper. 01840_ G-47 Trooper suffers critical hit. 01840_ Destroyed Particle Gun. 01840_ HV Slug penetrates Wall. 01842_ HV Slug penetrates G-47 Trooper. 01842_ G-47 Trooper suffers critical hit. 01842_ G-47 Trooper destroyed. 01844_ HV Slug penetrates G-47 Trooper. 01844_ G-47 Trooper suffers critical hit. 01844_ Destroyed Imp. Heat Sink. 01844_ G-47 Trooper knocked back. 01847_ Acquired 44 matter. 01847_ U-05 Engineer lays Concrete. 01847_ U-05 Engineer builds a Wall. 01847_ U-05 Engineer lays Concrete. 01849_ The unstable cave ceiling collapses. 01849_ Crushed by falling debris. Map ----- +----------------------------------------------------+ | ?????????????????????????????? | | ?????????????????????????????? | | ?????????????????????????????? | | ?????????????????????????????? | | ?????????????????????????????? | | ?????????????????????????????? | | ???????#?????????????????????? | | ???????#%????????????????????? | | ???????? ?????????????????? ?? | | ???????? ?????????????????? ? | | ????????# ????????????????? ? | | ??????### ????????????????? ? | | ??????? # ????????########;#? | | ????????+ ????##### #? | | ????????# g???# # #? | | ????????# ??## ; #? | | ????????# ??## #u #? | | ????????# #### /u #? | | ######+## % # #? | | * # [#? | | = ; #? | | ! ; ] #? | | ; ;;;; ;##? | | ;; ; #?? | | """ """ """ #= ; #?? | | ??""" """ """ %T####=@/### | | ??""" """ """ "# = # | | ????"? """ """ ## # | | ?????? """ """ # # | | ?????? # """ # | | ???? g/ """"" # | | ????? % # """" # | | ?????T#####+### ^ ^# """"" # | | ??????????????## ## """ # | | ???????????????# ## # | | ???????????????# ##;######## | | ???????????????# ###???????? | | ???????????????# #?????????? | | ???????????????# ??????????? | | ???????????????? ??????????? | | ?????????????????????????????? | | ?????????????????????????????? | | ?????????????????Y???????????? | | ?????????????????????????????? | | ?????????????????????????????? | | ?????????????????????????????? | | ?????????????????????????????? | | ?????????????????????????????? | | ?????????????????????????????? | | ?????????????????????????????? | +----------------------------------------------------+ Best States ------------- Heat Dissipation 53 Energy Generation 10 Energy Capacity 250 Matter Stores 300 Matter Capacity 300 Sight Range 18 Terrain Scan Range 16 Terrain Scan Density 10 Evasion (%) 60 Armor Integrity Analysis 33 Offensive Hacking 5 Item Schematics ----------------- None Robot Schematics ------------------ None Fabricated ------------ Nothing Alien Tech Used ----------------- None Achievements -------------- None Challenges ------------ None RPGLIKE | -11 -10 -10 -10 -9 -8 --------- Run | Scr Mat Min Exi Min Mat Levels Raised 2 | . . . . 1 1 XP Earned 7100 | 3000 250 500 350 750 2250 XP Spent 5955 | 3000 . . . 1455 1500 Upgrades 15 | 6 . . . 6 3 Propulsion Slot 3 | 3 . . . . . Utility Slot 2 | . . . . 2 . Core Integrity 3 | . . . . 3 . Heat Dissipation 1 | . . . . 1 . Sight Range 2 | 2 . . . . . Ranged Accuracy 3 | . . . . . 3 Hack Attack % 1 | 1 . . . . . Protomatter Created 83 | . 41 . . 14 28 Integrity Restored 162 | . . . . 138 24 Core 162 | . . . . 138 24 Protomatter Decayed 162 | . 83 . . 59 20 Game ------ Seed FusionFlightFirepult Manual? 0 Play Time 00:40:25 Cumulative 14.3 hours Start 2020.05.29 @ 00:12:07 End 2020.05.29 @ 01:08:04 Sessions 1 Manual Loads 0 Difficulty Rogue Special Mode Winter2019/RPGLIKE Game No. 27 Rogue 27 Adventurer 0 Explorer 0 Win Type - Total 0 Types 0/0/0/0/0/0/0 Lore% 12 Gallery% 20 Achievement% 17 Wizard Run 0 Options --------- ASCII 0 Keyboard 0 Movement Mouse Keybinds 0 Fullscreen 1 Font 18/Terminus Map View 76x50 Tactical HUD 1 Map Filters NONE Filters NONE Steam 1 RUN: a2f092f2-6630-4756-9188-9a8b150f6f77